fUSD/lending_fUSD_20260417
["ID","MTS","AMOUNT","RATE_DAILY","PERIOD"]
[420647843,1776421832219,-38162.6223,8.4e-05,2]
[420647844,1776421832228,-150.0,8.52e-05,2]
[420647845,1776421832237,-165.85,8.557e-05,2]
[420647846,1776421832247,-500.0,8.573e-05,2]
[420647847,1776421832256,-500.0,8.573e-05,2]
[420647848,1776421832265,-356.64372369,8.573e-05,2]
[420647849,1776421832274,-500.0,8.573e-05,2]
[420647850,1776421832284,-500.0,8.573e-05,2]
[420647851,1776421832293,-501.3372433,8.573e-05,2]
[420647852,1776421832302,-500.0,8.573e-05,2]
[420647853,1776421832311,-295.66917374,8.575e-05,2]
[420647854,1776421832320,-211.96707201,8.575e-05,2]
[420647855,1776421832330,-150.0,8.598e-05,2]
[420647856,1776421832340,-500.0,8.599e-05,2]
[420647857,1776421832349,-800.94534085,8.599e-05,2]
[420647858,1776421832359,-2378.99031299,8.599e-05,2]
[420647859,1776421832368,-631.63,8.599e-05,2]
[420647860,1776421832378,-250.0,8.599e-05,2]
[420647861,1776421832387,-198.47307716,8.599e-05,2]
[420647862,1776421832397,-500.0,8.599e-05,2]
[420647863,1776421832406,-500.0,8.599e-05,2]
[420647864,1776421832415,-500.0,8.599e-05,2]
[420647865,1776421832425,-246.3324668,8.599e-05,2]
[420647866,1776421832434,-500.0,8.599e-05,2]
[420647867,1776421832444,-500.0,8.599e-05,2]
[420647868,1776421832454,-500.0,8.599e-05,2]
[420647869,1776421832463,-500.0,8.599e-05,2]
[420647870,1776421832472,-500.0,8.599e-05,2]
[420647871,1776421832483,-500.0,8.599e-05,2]
[420647872,1776421832492,-500.0,8.599e-05,2]
[420647873,1776421832503,-500.0,8.599e-05,2]
[420647874,1776421832512,-500.0,8.599e-05,2]
[420647875,1776421832523,-500.0,8.599e-05,2]
[420647876,1776421832532,-500.0,8.599e-05,2]
[420647877,1776421832542,-500.0,8.599e-05,2]
[420647878,1776421832551,-500.0,8.599e-05,2]
[420647879,1776421832561,-500.0,8.599e-05,2]
[420647880,1776421832570,-407.11107356,8.599e-05,2]
[420647881,1776421832579,-500.0,8.599e-05,2]
[420647882,1776421832590,-500.0,8.599e-05,2]
[420647883,1776421832599,-500.0,8.599e-05,2]
[420647884,1776421832609,-500.0,8.599e-05,2]
[420647885,1776421832618,-500.0,8.599e-05,2]
[420647886,1776421832627,-500.0,8.599e-05,2]
[420647887,1776421832637,-500.0,8.599e-05,2]
[420647888,1776421832647,-500.0,8.599e-05,2]
[420647889,1776421832658,-500.0,8.599e-05,2]
[420647890,1776421832668,-500.0,8.599e-05,2]
[420647891,1776421832678,-500.0,8.599e-05,2]
[420647892,1776421832689,-500.0,8.599e-05,2]
[420647893,1776421832699,-500.0,8.599e-05,2]
[420647894,1776421832709,-500.0,8.599e-05,2]
[420647895,1776421832719,-500.0,8.599e-05,2]
[420647896,1776421832728,-500.0,8.599e-05,2]
[420647897,1776421832738,-500.0,8.599e-05,2]
[420647898,1776421832748,-196.77687023,8.599e-05,2]
[420647899,1776421832757,-500.0,8.599e-05,2]
[420647900,1776421832766,-500.0,8.599e-05,2]
[420647901,1776421832776,-500.0,8.599e-05,2]
[420647902,1776421832785,-300.0,8.599e-05,2]
[420647903,1776421832797,-500.0,8.599e-05,2]
[420647904,1776421832807,-638.94073911,8.599e-05,2]
[420647905,1776421832817,-500.0,8.599e-05,2]
[420647906,1776421832826,-266.62505872,8.599e-05,2]
[420647907,1776421832837,-500.0,8.599e-05,2]
[420647908,1776421832846,-500.0,8.599e-05,2]
[420647909,1776421832855,-500.0,8.599e-05,2]
[420647910,1776421832867,-500.0,8.599e-05,2]
[420647911,1776421832876,-344.90983264,8.599e-05,2]
[420647912,1776421832886,-310.15124724,8.599e-05,2]
[420647913,1776421832895,-500.0,8.599e-05,2]
[420647914,1776421832905,-500.0,8.599e-05,2]
[420647915,1776421832915,-500.0,8.599e-05,2]
[420647916,1776421832924,-500.0,8.599e-05,2]
[420647917,1776421832933,-500.0,8.599e-05,2]
[420647918,1776421832942,-500.0,8.599e-05,2]
[420647919,1776421832951,-500.0,8.599e-05,2]
[420647920,1776421832961,-500.0,8.599e-05,2]
[420647921,1776421832970,-500.0,8.599e-05,2]
[420647922,1776421832981,-500.0,8.599e-05,2]
[420647923,1776421832992,-500.0,8.599e-05,2]
[420647924,1776421833003,-500.0,8.599e-05,2]
[420647925,1776421833012,-500.0,8.599e-05,2]
[420647926,1776421833023,-500.0,8.599e-05,2]
[420647927,1776421833032,-500.0,8.599e-05,2]
[420647928,1776421833045,-200.0,8.599e-05,2]
[420647929,1776421833056,-500.0,8.599e-05,2]
[420647930,1776421833067,-500.0,8.599e-05,2]
[420647931,1776421833077,-350.0,8.599e-05,2]
[420647932,1776421833088,-500.0,8.599e-05,2]
[420647933,1776421833098,-500.0,8.599e-05,2]
[420647934,1776421833107,-500.0,8.599e-05,2]
[420647935,1776421833117,-500.0,8.599e-05,2]
[420647936,1776421833126,-500.0,8.599e-05,2]
[420647937,1776421833136,-500.0,8.599e-05,2]
[420647938,1776421833148,-500.0,8.599e-05,2]
[420647939,1776421833159,-500.0,8.599e-05,2]
[420647940,1776421833170,-500.0,8.599e-05,2]
[420647941,1776421833179,-500.0,8.599e-05,2]
[420647942,1776421833188,-500.0,8.599e-05,2]
[420647943,1776421833198,-500.0,8.599e-05,2]
[420647944,1776421833207,-500.0,8.599e-05,2]
[420647945,1776421833216,-500.0,8.599e-05,2]
[420647946,1776421833226,-500.0,8.599e-05,2]
[420647947,1776421833236,-500.0,8.599e-05,2]
[420647948,1776421833246,-500.0,8.599e-05,2]
[420647949,1776421833256,-500.0,8.599e-05,2]
[420647950,1776421833267,-172.39566048,8.599e-05,2]
[420647951,1776421833277,-500.0,8.599e-05,2]
[420647952,1776421833287,-500.0,8.599e-05,2]
[420647953,1776421833298,-500.0,8.599e-05,2]
[420647954,1776421833308,-44683.58053888,8.6e-05,2]
[420647955,1776421833322,-12535.36602058,8.6e-05,2]
[420647956,1776421833339,-4536.06,8.6e-05,2]
[420647964,1776421839631,-552.33156409,8.6e-05,2]
[420647965,1776421839717,-177.31974177,8.6e-05,2]
[420647998,1776421840214,-51350.39222981,8.6e-05,2]
[420648000,1776421840226,-41736.37343625,8.6e-05,2]
[420648018,1776421840877,-547.60466731,8.6e-05,2]
[420648019,1776421840937,-311904.28711758,8.6e-05,2]
[420648028,1776421844433,200.0,7.811e-05,2]
[420648059,1776421848014,-75299.99999999,8.6e-05,2]
[420648060,1776421848027,-384.0,8.6e-05,2]
[420648061,1776421848057,-53042.69565623,8.6e-05,2]
[420648062,1776421848172,-3122.66619956,8.6e-05,2]
[420648063,1776421848204,-11335.73424173,8.6e-05,2]
[420648064,1776421848216,-417.0,8.6e-05,2]
[420648065,1776421848266,-235401.5815149,8.6e-05,2]
[420648068,1776421884528,-151.0,8.597e-05,2]
[420648069,1776421884549,-1000.0,8.599e-05,2]
[420648070,1776421884573,-300.0,8.599e-05,2]
[420648071,1776421884600,-2654.0,8.6e-05,2]
[420648072,1776421897457,1708.02,7.835e-05,2]
[420648073,1776421902627,3291.99,7.835e-05,2]
[420648074,1776421902652,1994.39,7.835e-05,2]
[420648075,1776421927554,150.0,7.835e-05,3]
[420648076,1776421988700,150.0,7.835e-05,3]
[420648077,1776422008842,3279.36,7.714e-05,2]
[420648079,1776422034890,1852.42,7.729e-05,2]
[420648081,1776422048810,150.0,7.729e-05,3]
[420648082,1776422050681,158.25,8.219e-05,2]
[420648083,1776422111417,155.0,8.219e-05,3]
[420648084,1776422111497,150.0,8.219e-05,3]
[420648085,1776422138654,150.0,8.056e-05,2]
[420648086,1776422156804,10000.01,8e-05,2]
[420648087,1776422156828,10000.01,8e-05,2]
[420648088,1776422156852,10000.01,8e-05,2]
[420648089,1776422156876,10000.01,8e-05,2]
[420648090,1776422156900,10000.01,8e-05,2]
[420648091,1776422156923,9999.95,8e-05,2]
[420648092,1776422163606,0.06,7.728e-05,2]
[420648093,1776422163629,499.94,7.728e-05,2]
[420648094,1776422165249,217.0,8.219e-05,3]
[420648095,1776422231767,338.0,8.219e-05,3]
[420648096,1776422284985,321.0,8.219e-05,3]
[420648097,1776422336978,1500.0,7.67e-05,2]
[420648110,1776422407552,331.0,7.67e-05,3]
[420648111,1776422409128,159.0,7.67e-05,3]
[420648112,1776422467905,314.0,7.67e-05,3]
[420648113,1776422562620,1600.0,7.645e-05,2]
[420648114,1776422587392,299.0,7.67e-05,3]
[420648115,1776422648571,284.0,7.67e-05,3]
[420648116,1776422707320,153.09367327,8.186e-05,2]
[420648117,1776422707352,150.0,8.186e-05,2]
[420648118,1776422708255,151.77529684,8.186e-05,2]
[420648119,1776422712514,159.0,7.67e-05,3]
[420648120,1776422714260,150.0,8.186e-05,2]
[420648121,1776422714538,150.0,8.186e-05,2]
[420648122,1776422719830,150.0,8.186e-05,2]
[420648123,1776422724785,151.62743791,8.186e-05,2]
[420648124,1776422748583,8500.51359198,7.659e-05,2]
[420648125,1776422748609,10000.01,7.659e-05,2]
[420648126,1776422748636,10000.01,7.659e-05,2]
[420648127,1776422748660,10000.01,7.659e-05,2]
[420648128,1776422748684,10000.01,7.659e-05,2]
[420648129,1776422748706,10000.01,7.659e-05,2]
[420648130,1776422748730,10000.01,7.659e-05,2]
[420648131,1776422748752,10000.01,7.659e-05,2]
[420648132,1776422748776,10000.01,7.659e-05,2]
[420648133,1776422748799,10000.01,7.659e-05,2]
[420648134,1776422748824,23821.17640802,7.659e-05,2]
[420648135,1776422766850,382.0,7.659e-05,3]
[420648136,1776422770638,10118.88,7.641e-05,2]
[420648137,1776422771119,358.9294023,7.659e-05,2]
[420648138,1776422772674,634.98340203,7.659e-05,2]
[420648139,1776422773092,162.0,7.659e-05,3]
[420648140,1776422779328,1804.425907,8.178e-05,2]
[420648141,1776422807742,825.77066684,7.659e-05,2]
[420648142,1776422827900,389.0,7.659e-05,3]
[420648143,1776422830145,-150.0,8.305e-05,2]
[420648144,1776422830168,-57.14856194,8.311e-05,2]
[420648146,1776422854577,769.36312026,7.659e-05,2]
[420648147,1776422856423,150.0,8.22e-05,2]
[420648148,1776422858493,-135.85143806,8.311e-05,2]
[420648149,1776422858518,-250.0,8.317e-05,2]
[420648150,1776422858543,-183.68564111,8.334e-05,2]
[420648151,1776422858568,-400.0,8.344e-05,2]
[420648152,1776422858593,-234.48,8.344e-05,2]
[420648153,1776422858618,-1200.0,8.352e-05,2]
[420648154,1776422858642,-150.0,8.352e-05,2]
[420648155,1776422858666,-215.73364031,8.352e-05,2]
[420648156,1776422858691,-500.0,8.353e-05,2]
[420648157,1776422858729,-500.0,8.353e-05,2]
[420648158,1776422858755,-614.04434257,8.353e-05,2]
[420648159,1776422858781,-150.0,8.353e-05,2]
[420648160,1776422858805,-272.098,8.399e-05,2]
[420648161,1776422858831,-389.0,8.414e-05,3]
[420648162,1776422858856,-215.73364029,8.436e-05,2]
[420648163,1776422858885,-24315.7344,8.499e-05,2]
[420648164,1776422858910,-1000.0,8.499e-05,2]
[420648165,1776422858934,-37845.1907,8.5e-05,2]
[420648166,1776422858958,-1450.1,8.52e-05,2]
[420648167,1776422858982,-9999.99,8.52e-05,2]
[420648168,1776422859006,-999.99,8.52e-05,2]
[420648169,1776422859030,-150.99,8.52e-05,2]
[420648170,1776422859054,-9999.99,8.52e-05,2]
[420648171,1776422859078,-215.73364029,8.52e-05,2]
[420648172,1776422859105,-150.0,8.52e-05,2]
[420648173,1776422859131,-3068.9329,8.527e-05,2]
[420648174,1776422859157,-2500.0,8.527e-05,2]
[420648175,1776422859183,-208.04,8.557e-05,2]
[420648176,1776422859216,-578.20924308,8.581e-05,2]
[420648177,1776422859245,-986.41230636,8.581e-05,2]
[420648178,1776422859276,-174.61919141,8.581e-05,2]
[420648179,1776422859304,-500.0,8.59e-05,2]
[420648180,1776422859329,-200.0,8.595e-05,2]
[420648181,1776422859357,-646.65982734,8.595e-05,2]
[420648182,1776422859383,-1280.88388878,8.595e-05,2]
[420648183,1776422859409,-500.0,8.595e-05,2]
[420648184,1776422859438,-500.0,8.595e-05,2]
[420648185,1776422859468,-500.0,8.595e-05,2]
[420648186,1776422859496,-834.86527717,8.595e-05,2]
[420648187,1776422859522,-774.2301018,8.599e-05,2]
[420648188,1776422859548,-665.12068541,8.599e-05,2]
[420648189,1776422859573,-208.85422176,8.599e-05,2]
[420648190,1776422859598,-500.0,8.599e-05,2]
[420648191,1776422859624,-5060.7541319,8.6e-05,2]
[420648192,1776422859650,-76747.0352726,8.6e-05,2]
[420648193,1776422859679,-727.96985702,8.6e-05,2]
[420648194,1776422859706,-736.91,8.6e-05,2]
[420648195,1776422859731,-500.0,8.6e-05,2]
[420648196,1776422859755,-200.0,8.6e-05,2]
[420648197,1776422859783,-200.0,8.6e-05,2]
[420648198,1776422859808,-200.0,8.6e-05,2]
[420648199,1776422859833,-200.0,8.6e-05,2]
[420648200,1776422859858,-200.0,8.6e-05,2]
[420648201,1776422859883,-200.0,8.6e-05,2]
[420648202,1776422859908,-200.0,8.6e-05,2]
[420648203,1776422859934,-200.0,8.6e-05,2]
[420648204,1776422859961,-200.0,8.6e-05,2]
[420648205,1776422859989,-200.0,8.6e-05,2]
[420648206,1776422860015,-200.0,8.6e-05,2]
[420648207,1776422860041,-200.0,8.6e-05,2]
[420648208,1776422860067,-200.0,8.6e-05,2]
[420648209,1776422860098,-200.0,8.6e-05,2]
[420648210,1776422860126,-345.837214,8.6e-05,2]
[420648211,1776422860158,-400.0,8.6e-05,2]
[420648212,1776422860189,-234.48,8.6e-05,2]
[420648213,1776422860216,-1600.0,8.601e-05,2]
[420648214,1776422860243,-150.0,8.602e-05,2]
[420648215,1776422860270,-416.0,8.624e-05,2]
[420648216,1776422860296,-153.66832047,8.625e-05,2]
[420648217,1776422860323,-157.192,8.625e-05,2]
[420648218,1776422860354,-500.0,8.625e-05,2]
[420648219,1776422860387,-500.0,8.625e-05,2]
[420648220,1776422860420,-500.0,8.625e-05,2]
[420648221,1776422860453,-500.0,8.625e-05,2]
[420648222,1776422860486,-500.0,8.625e-05,2]
[420648223,1776422860519,-500.0,8.625e-05,2]
[420648224,1776422860551,-500.0,8.625e-05,2]
[420648225,1776422860584,-500.0,8.625e-05,2]
[420648226,1776422860615,-500.0,8.625e-05,2]
[420648227,1776422860646,-500.0,8.625e-05,2]
[420648228,1776422860676,-500.0,8.625e-05,2]
[420648229,1776422860706,-500.0,8.625e-05,2]
[420648230,1776422860736,-500.0,8.625e-05,2]
[420648231,1776422860765,-500.0,8.625e-05,2]
[420648232,1776422860794,-500.0,8.625e-05,2]
[420648233,1776422860826,-500.0,8.625e-05,2]
[420648234,1776422860855,-500.0,8.625e-05,2]
[420648235,1776422860886,-500.0,8.625e-05,2]
[420648236,1776422860919,-500.0,8.625e-05,2]
[420648237,1776422860955,-500.0,8.625e-05,2]
[420648238,1776422860985,-371.2267168,8.625e-05,2]
[420648239,1776422861016,-500.0,8.625e-05,2]
[420648240,1776422861045,-500.0,8.625e-05,2]
[420648241,1776422861076,-500.0,8.625e-05,2]
[420648242,1776422861107,-500.0,8.625e-05,2]
[420648243,1776422861139,-250.0,8.625e-05,2]
[420648244,1776422861167,-500.0,8.627e-05,2]
[420648245,1776422861197,-93102.1495496,8.628e-05,2]
[420648246,1776422861226,-49251.7185952,8.628e-05,2]
[420648247,1776422861253,-4368.6121376,8.628e-05,2]
[420648248,1776422861279,-150.0,8.641e-05,2]
[420648249,1776422861304,-406.64136761,8.698e-05,2]
[420648250,1776422861329,-500.0,8.699e-05,2]
[420648251,1776422861355,-500.0,8.699e-05,2]
[420648252,1776422861380,-222.43272676,8.699e-05,2]
[420648253,1776422861405,-500.0,8.699e-05,2]
[420648254,1776422861430,-297.25851738,8.699e-05,2]
[420648255,1776422861459,-217.10587307,8.699e-05,2]
[420648256,1776422861483,-26714.83120426,8.7e-05,3]
[420648260,1776422876220,14065.723126,8.178e-05,2]
[420648261,1776422889442,350.0,8.178e-05,3]
[420648262,1776422925485,150.0,8.22e-05,2]
[420648266,1776422950075,152.0,8.22e-05,3]
[420648267,1776422952194,163.0,8.22e-05,3]
[420648268,1776422957653,-300.0,8.398e-05,2]
[420648269,1776422957683,-158265.8943,8.399e-05,2]
[420648271,1776422987790,150.0,8.22e-05,2]
[420648273,1776423011493,332.0,8.22e-05,3]
[420648274,1776423011535,157.0,8.22e-05,3]
[420648288,1776423032293,-300.0,8.419e-05,2]
[420648290,1776423032302,-1200.0,8.419e-05,2]
[420648291,1776423032312,-167.75473326,8.42e-05,2]
[420648316,1776423034652,-6614.16606674,8.42e-05,2]
[420648317,1776423034662,-2668.9931,8.42e-05,2]
[420648318,1776423034671,-67156.70060506,8.42e-05,2]
[420648319,1776423034683,-2831.0,8.42e-05,2]
[420648320,1776423034703,-882.31924771,8.42e-05,2]
[420648321,1776423034714,-8271.08992625,8.42e-05,2]
[420648322,1776423034737,-19639.15962098,8.42e-05,2]
[420648323,1776423034746,-2500.0,8.502e-05,2]
[420648324,1776423034755,-150.0,8.52e-05,2]
[420648325,1776423034765,-375.8614293,8.581e-05,2]
[420648326,1776423034774,-80548.51846147,8.6e-05,2]
[420648327,1776423034789,-2174.50212326,8.6e-05,2]
[420648328,1776423034801,-491.5847794,8.6e-05,2]
[420648329,1776423034812,-3331.55408255,8.6e-05,2]
[420648335,1776423038509,-253813.36474581,8.6e-05,2]
[420648336,1776423038521,-527.2018554,8.6e-05,2]
[420648337,1776423038532,-1221.05754407,8.6e-05,2]
[420648338,1776423038544,-104043.47546599,8.6e-05,2]
[420648339,1776423038567,-1290.08569442,8.6e-05,2]
[420648340,1776423038616,-3460.0,8.6e-05,2]
[420648341,1776423038672,-372.73608226,8.6e-05,2]
[420648342,1776423038727,-34169.72326537,8.6e-05,2]
[420648343,1776423038737,-4029.6912802,8.638e-05,2]
[420648344,1776423038748,-15790.7662476,8.638e-05,2]
[420648345,1776423038757,-150.0,8.699e-05,2]
[420648346,1776423038767,-187311.40446526,8.7e-05,3]
[420648347,1776423038776,-151.0,8.7e-05,2]
[420648348,1776423038786,-151.0,8.7e-05,2]
[420648349,1776423038798,-151.0,8.7e-05,2]
[420648350,1776423038809,-151.0,8.7e-05,2]
[420648351,1776423038820,-151.0,8.7e-05,2]
[420648352,1776423038830,-6975.43726294,8.7e-05,2]
[420648353,1776423038840,-394.0,8.7e-05,2]
[420648354,1776423038851,-377.0,8.702e-05,2]
[420648355,1776423038863,-14873.67429471,8.71e-05,2]
[420648356,1776423038873,-150.0,8.722e-05,2]
[420648357,1776423038882,-500.0,8.726e-05,2]
[420648358,1776423038892,-584.10959855,8.726e-05,2]
[420648359,1776423038902,-500.0,8.726e-05,2]
[420648360,1776423038912,-500.0,8.726e-05,2]
[420648361,1776423038921,-500.0,8.726e-05,2]
[420648362,1776423038931,-337.58048183,8.726e-05,2]
[420648363,1776423038940,-500.0,8.726e-05,2]
[420648365,1776423038949,-500.0,8.726e-05,2]
[420648367,1776423038959,-500.0,8.726e-05,2]
[420648368,1776423038968,-500.0,8.726e-05,2]
[420648369,1776423038978,-150.0,8.726e-05,2]
[420648370,1776423038988,-154.44738196,8.726e-05,2]
[420648371,1776423038998,-500.0,8.726e-05,2]
[420648372,1776423039007,-500.0,8.726e-05,2]
[420648373,1776423039017,-500.0,8.726e-05,2]
[420648374,1776423039030,-500.0,8.726e-05,2]
[420648375,1776423039040,-150.0,8.726e-05,2]
[420648376,1776423039049,-526.82804619,8.726e-05,2]
[420648377,1776423039058,-150.0,8.726e-05,2]
[420648378,1776423039068,-218.56838661,8.726e-05,2]
[420648379,1776423039077,-150.0,8.726e-05,2]
[420648380,1776423039087,-150.0,8.726e-05,2]
[420648381,1776423039096,-500.0,8.726e-05,2]
[420648382,1776423039106,-500.0,8.726e-05,2]
[420648383,1776423039115,-223.25615635,8.726e-05,2]
[420648384,1776423039124,-150.0,8.726e-05,2]
[420648385,1776423039133,-150.0,8.726e-05,2]
[420648386,1776423039143,-150.0,8.726e-05,2]
[420648387,1776423039152,-256.66651478,8.726e-05,2]
[420648389,1776423039162,-5674.12947502,8.734e-05,2]
[420648390,1776423039173,-2851.3,8.734e-05,2]
[420648391,1776423039183,-3638.70551195,8.759e-05,2]
[420648392,1776423039194,-1091.15522348,8.773e-05,3]
[420648393,1776423039206,-1037.43324883,8.773e-05,3]
[420648394,1776423039217,-1096.9126958,8.773e-05,3]
[420648395,1776423039227,-354.32194628,8.802e-05,2]
[420648396,1776423039236,-30000.0,8.82e-05,2]
[420648397,1776423039246,-736.91,8.874e-05,2]
[420648398,1776423039255,-388.0,8.883e-05,2]
[420648399,1776423039265,-2000.0,8.9e-05,3]
[420648400,1776423039274,-158.25,8.904e-05,2]
[420648401,1776423039284,-332.0,8.945e-05,3]
[420648402,1776423039294,-160.26,8.953e-05,2]
[420648403,1776423039303,-286.26,8.953e-05,2]
[420648404,1776423039312,-62846.77465542,8.956e-05,2]
[420648405,1776423039322,-151.0,8.956e-05,2]
[420648406,1776423039331,-151.0,8.956e-05,2]
[420648407,1776423039341,-151.0,8.956e-05,2]
[420648408,1776423039350,-151.0,8.956e-05,2]
[420648409,1776423039359,-151.0,8.956e-05,2]
[420648410,1776423039368,-150.0,8.97e-05,2]
[420648411,1776423039378,-691.29032493,8.972e-05,2]
[420648412,1776423039387,-1318.23600536,9e-05,2]
[420648413,1776423039397,-1000.0,9e-05,2]
[420648414,1776423039409,-4100.0,9e-05,3]
[420648415,1776423039419,-231.82,9.001e-05,2]
[420648416,1776423039428,-6167.24251583,9.015e-05,2]
[420648417,1776423039438,-5000.0,9.015e-05,2]
[420648418,1776423039448,-5000.0,9.015e-05,2]
[420648419,1776423039459,-5000.0,9.015e-05,2]
[420648420,1776423039468,-5000.0,9.015e-05,2]
[420648421,1776423039478,-150.0,9.064e-05,2]
[420648422,1776423039487,-500.0,9.073e-05,2]
[420648423,1776423039496,-500.82327791,9.073e-05,2]
[420648424,1776423039506,-157.58789548,9.073e-05,2]
[420648425,1776423039516,-501.97819471,9.073e-05,2]
[420648426,1776423039525,-502.34190409,9.073e-05,2]
[420648427,1776423039535,-500.0,9.073e-05,2]
[420648428,1776423039545,-500.0,9.073e-05,2]
[420648429,1776423039555,-500.0,9.073e-05,2]
[420648430,1776423039564,-500.0,9.073e-05,2]
[420648431,1776423039575,-503.07815246,9.073e-05,2]
[420648432,1776423039584,-1077.051,9.073e-05,2]
[420648433,1776423039594,-185.869,9.073e-05,2]
[420648434,1776423039603,-252.83565639,9.096e-05,2]
[420648435,1776423039613,-150.0,9.096e-05,2]
[420648436,1776423039622,-3062.0,9.1e-05,5]
[420648437,1776423039632,-3323.0,9.1e-05,5]
[420648438,1776423039641,-250.0,9.1e-05,2]
[420648439,1776423039651,-358370.97197994,9.1e-05,2]
[420648440,1776423039660,-109515.09839849,9.1e-05,2]
[420648441,1776423039670,-100364.8475286,9.1e-05,2]
[420648442,1776423039680,-151.0,9.1e-05,2]
[420648443,1776423039690,-151.0,9.1e-05,2]
[420648444,1776423039700,-151.0,9.1e-05,2]
[420648445,1776423039709,-151.0,9.1e-05,2]
[420648446,1776423039718,-151.0,9.1e-05,2]
[420648447,1776423039728,-152.040932,9.1e-05,2]
[420648448,1776423039737,-762.601866,9.1e-05,2]
[420648449,1776423039747,-762.601866,9.1e-05,2]
[420648450,1776423039756,-762.601866,9.1e-05,2]
[420648451,1776423039765,-762.601866,9.1e-05,2]
[420648452,1776423039775,-762.601866,9.1e-05,2]
[420648453,1776423039785,-762.601866,9.1e-05,2]
[420648454,1776423039795,-762.601866,9.1e-05,2]
[420648455,1776423039805,-762.601866,9.1e-05,2]
[420648456,1776423039814,-650.336908,9.1e-05,2]
[420648457,1776423039824,-650.336908,9.1e-05,2]
[420648458,1776423039834,-650.336908,9.1e-05,2]
[420648459,1776423039844,-650.336908,9.1e-05,2]
[420648460,1776423039853,-650.336908,9.1e-05,2]
[420648461,1776423039862,-650.336908,9.1e-05,2]
[420648462,1776423039871,-650.336908,9.1e-05,2]
[420648463,1776423039881,-650.336908,9.1e-05,2]
[420648464,1776423039890,-181.08010149,9.129e-05,2]
[420648465,1776423039899,-250.0,9.136e-05,2]
[420648466,1776423039909,-2214.5213117,9.136e-05,2]
[420648467,1776423039918,-5000.0,9.136e-05,2]
[420648468,1776423039927,-193.0,9.136e-05,2]
[420648469,1776423039937,-201.30418957,9.143e-05,2]
[420648470,1776423039946,-1328.27659266,9.143e-05,2]
[420648471,1776423039956,-736.91,9.148e-05,2]
[420648472,1776423039966,-166.76,9.213e-05,2]
[420648473,1776423039975,-615.92418026,9.217e-05,2]
[420648474,1776423040029,-2912.07581974,9.217e-05,2]
[420648475,1776423040038,-622.0,9.217e-05,2]
[420648476,1776423040048,-1047.0,9.217e-05,2]
[420648477,1776423040057,-1265.342,9.217e-05,2]
[420648478,1776423040067,-3777.0,9.227e-05,2]
[420648479,1776423040076,-416.0,9.227e-05,2]
[420648480,1776423040085,-250.0,9.238e-05,2]
[420648481,1776423040094,-576.07527078,9.246e-05,2]
[420648482,1776423040103,-2000.0,9.247e-05,2]
[420648483,1776423040112,-169.45,9.261e-05,2]
[420648484,1776423040122,-420.0,9.261e-05,2]
[420648485,1776423040131,-1680.0,9.261e-05,2]
[420648486,1776423040140,-250.0,9.262e-05,2]
[420648487,1776423040150,-3298.33088948,9.262e-05,2]
[420648488,1776423040159,-3280.9,9.322e-05,2]
[420648489,1776423040168,-429.0,9.386e-05,2]
[420648490,1776423040178,-150.0,9.42e-05,2]
[420648491,1776423040187,-736.91,9.422e-05,2]
[420648492,1776423040196,-200.0,9.445e-05,2]
[420648493,1776423040207,-150.0,9.445e-05,2]
[420648494,1776423040217,-2424.0,9.464e-05,5]
[420648495,1776423040227,-155.0,9.488e-05,2]
[420648496,1776423040238,-319.643968,9.5e-05,2]
[420648497,1776423040247,-165.6387,9.5e-05,2]
[420648498,1776423040256,-3622.0,9.5e-05,2]
[420648499,1776423040266,-1600.0,9.557e-05,2]
[420648500,1776423040277,-255.0,9.569e-05,2]
[420648501,1776423040287,-158.25,9.589e-05,2]
[420648502,1776423040297,-200.0,9.589e-05,2]
[420648503,1776423040307,-200.0,9.589e-05,2]
[420648504,1776423040317,-200.0,9.589e-05,2]
[420648505,1776423040326,-500.0,9.621e-05,2]
[420648506,1776423040337,-823.18330102,9.621e-05,2]
[420648507,1776423040346,-1000.0,9.621e-05,2]
[420648508,1776423040356,-160.0,9.634e-05,2]